Cogmind - Beta 15 @@@ ROGUE MODE // 2025.07.25 @ 18:29:06 Player: Inverisimilidude Result: Destroyed by Y-45 Defender with Beam Rifle Performance ------------- Evolutions (1) 500 Regions Visited (4) 800 Robots Destroyed (34) 170 Value Destroyed (746) 746 Prototype IDs (1) 20 Alien Tech Used (0) 0 Bonus (0) 0 TOTAL SCORE: 2236 Bonus ------- None Cogmind --------- Core Integrity 0/400 Matter 232/300 Energy 100/100 System Corruption 1% Temperature Cool (9) Movement Core (50) Location -9/Storage Parts ------- > --- POWER (1) -------- (None) > --- PROPULSION (3) --- (None) > --- UTILITY (3) ------ Signal Interpreter > --- WEAPON (2) ------- (None) > --- INVENTORY (5) ---- Improved Aluminum Leg Sensor Drone Bay (20/20) Spread Laser Spread Laser Makeshift Spear Peak State ------------ > --- POWER ------------ Light Ion Engine > --- PROPULSION ------- Improved Aluminum Leg Improved Aluminum Leg Improved Aluminum Leg > --- UTILITY ---------- Small Storage Unit Seismic Detector Hacking Suite > --- WEAPON ----------- Spread Laser Makeshift Spear > --- INVENTORY -------- Improved Aluminum Leg Improved Aluminum Leg Improved Aluminum Leg Signal Interpreter Sensor Drone Bay Spread Laser Assault Rifle Grenade Launcher [Rating: 19] Favorites ----------- Power Ion Engine Engine Ion Engine Propulsion Wheel Leg Improved Aluminum Leg Wheel Wheel Utility Small Storage Unit Device Seismic Detector Storage Small Storage Unit Processor Signal Interpreter Hackware Hacking Suite Weapon Assault Rifle Energy Gun EM Pulse Gun Ballistic Gun Assault Rifle Launcher Grenade Launcher Piercing Weapon Makeshift Spear Build | -11 -10 -10 -9 -9 ------- Run | Yrd Mat Min Mat Sto Slots Evolved 2 | . . . 2 . Power . | . . . . . Propulsion 1 | . . . 1 . Utility 1 | . . . 1 . Weapon . | . . . . . Parts Attached 25 | 8 . 6 4 7 Power 2 | 1 . . . 1 Engine 2 | 1 . . . 1 Core . | . . . . . Reactor . | . . . . . Propulsion 10 | 2 . 1 2 5 Treads . | . . . . . Leg 5 | . . . . 5 Wheel 5 | 2 . 1 2 . Hover . | . . . . . Flight . | . . . . . Utility 7 | 3 . 2 1 1 Device 4 | 2 . 2 . . Storage 1 | 1 . . . . Processor 1 | . . . . 1 Hackware 1 | . . . 1 . Protection . | . . . . . Artifact . | . . . . . Weapon 6 | 2 . 3 1 . Energy Gun 2 | . . 1 1 . Energy Cannon . | . . . . . Ballistic Gun 2 | 2 . . . . Ballistic Cannon . | . . . . . Launcher 1 | . . 1 . . Special Weapon . | . . . . . Impact Weapon . | . . . . . Slashing Weapon . | . . . . . Piercing Weapon 1 | . . 1 . . Special Melee Weapon . | . . . . . Unidentified Prototypes 1 | . . 1 . . Parts Lost 9 | . . . 2 7 Power 2 | . . . . 2 Propulsion 4 | . . . 1 3 Utility . | . . . . . Weapon 3 | . . . 1 2 Highest Loss Streak 5 | . . . 1 5 To Critical Strikes . | . . . . . Average Backups 7 | 2 6 7 6 6 Power . | . 1 1 1 . Propulsion 1 | 1 2 2 . 1 Utility 1 | . . . 1 1 Weapon 3 | 1 2 3 3 3 Tool/Special . | . . . . . Unused Backups 5 | . 3 . . 2 Power . | . . . . . Propulsion 3 | . 2 . . 1 Utility . | . . . . . Weapon 2 | . 1 . . 1 Tool/Special . | . . . . . Average Slot Usage (%) 92 | . 100 91 97 86 Engine 12 | . 14 14 11 9 Leg 4 | . . . . 18 Wheel 24 | . 28 28 32 9 Device 8 | . 14 5 11 10 Storage 12 | . 14 14 11 10 Hackware 4 | . . . 10 10 Energy Gun 8 | . . 8 10 8 Ballistic Gun 14 | . 28 16 11 6 Launcher 1 | . . 2 . . Peak Build Rating 19 | 9 8 15 15 19 Average Rating 10 | 4 7 9 14 14 On Entrance 7 | . 7 8 9 15 Naked Turns . | . . . . . Heaviest Build 29 | 14 14 29 16 17 Greatest Support 39 | 26 26 26 34 39 Greatest Overweight (x) 1 | . . 1 . 1 Average Overweight (x) . | . . . . . Largest Inventory Capacity 8 | 8 8 8 8 8 Average Capacity 7 | 6 8 8 8 7 Most Carried 8 | 5 8 8 8 8 Average Carried 7 | 3 6 7 6 6 Final Capacity 8 | 8 8 8 8 5 Final Carried 8 | 4 8 8 6 5 Class Distribution -------------------- 100% | Mutant Dominant Class ---------------- Mutant | -10/Materials Mutant | -10/Mines Mutant | -9/Materials Mutant | -9/Storage Resources | -11 -10 -10 -9 -9 ----------- Run | Yrd Mat Min Mat Sto Matter Collected 681 | 294 . 203 102 82 Remotely . | . . . . . Salvage Created 885 | 114 . 270 360 141 Parts 60 | 7 . 13 24 16 Haulers Intercepted 1 | . . . . 1 Recyclers Shooed 1 | . . . . 1 Parts Field Recycled . | . . . . . Retrieved Matter . | . . . . . Parts Self-Destructed . | . . . . . Prevented . | . . . . . Kills | -11 -10 -10 -9 -9 ------- Run | Yrd Mat Min Mat Sto Combat Hostiles Destroyed 25 | . . 7 9 9 Guns 11 | . . . 9 2 AOE 14 | . . 7 . 7 Classes Destroyed 8 | 2 . 2 3 1 Tunneler 5 | 2 . 3 . . Hauler 1 | . . . . 1 Recycler 2 | 1 . 1 . . Operator 1 | . . . 1 . Swarmer 10 | . . 3 . 7 Grunt 11 | . . 4 7 . Brawler 1 | . . . 1 . Sentry 3 | . . . 1 2 Best Kill Streak 5 | 3 . 3 3 5 Combat Bots Only 4 | . . 3 3 4 Max Kills in Single Turn 3 | 1 . 3 1 3 Gunslinging . | . . . . . Exploded 3 | . . 3 . 3 Melee . | . . . . . Uniques/NPCs Destroyed . | . . . . . Combat | -11 -10 -10 -9 -9 -------- Run | Yrd Mat Min Mat Sto Hostile Shots Fired 148 | . 1 12 25 110 Missed 50 | . . 5 9 36 Hits 98 | . 1 7 16 74 Projectile 98 | . 1 7 16 74 Critical Strikes 4 | . . . . 4 Damage Taken 1375 | . 11 129 203 1032 Core 438 | . . 31 55 352 Absorbed by Shields . | . . . . . Core Remaining (%) 93 | 100 . 87 . . Volleys Fired 57 | 6 . 18 24 9 Largest 2 | 2 . 2 2 2 Hottest 95 | 40 . 70 85 95 Shots Fired 110 | 12 . 33 48 17 Gun 99 | 12 . 26 48 13 Cannon . | . . . . . Launcher 11 | . . 7 . 4 Special . | . . . . . Kinetic 52 | 12 . 11 24 5 Thermal 22 | . . . 14 8 Explosive 11 | . . 7 . 4 Electromagnetic 25 | . . 15 10 . Robot Hit Streak 10 | 5 . 10 9 6 Robot Miss Streak 4 | 2 . 2 4 3 Penetration Max . | . . . . . Secondary Targets . | . . . . . Shots Hit Robots 78 | 6 . 25 35 12 Core Hits 64 | 4 . 17 24 19 Critical Kills . | . . . . . Critical Parts Destroyed . | . . . . . Critical Strikes . | . . . . . Melee Attacks 3 | . . . . 3 Impact . | . . . . . Slashing . | . . . . . Piercing 3 | . . . . 3 Sneak Attacks . | . . . . . Combat Hostiles . | . . . . . Follow-up Attacks . | . . . . . Damage Inflicted 1919 | 68 . 806 445 600 Guns 912 | 68 . 241 445 158 Cannons . | . . . . . Explosions 1005 | . . 565 . 440 Melee . | . . . . . Ramming 2 | . . . . 2 Kinetic 362 | 68 . 65 188 41 Thermal 421 | . . 122 182 117 Explosive 883 | . . 443 . 440 Electromagnetic 251 | . . 176 75 . Impact . | . . . . . Slashing . | . . . . . Piercing . | . . . . . Highest Corruption 1 | . . . . 1 Average Corruption 1 | . . . . 1 Corruption Purged . | . . . . . Corruption Blocked . | . . . . . Effects 2 | . . . . 2 Matter Fused 1 | . . . . 1 Data Loss (minor) 1 | . . . . 1 Overload Shots . | . . . . . Overflow Damage 8 | . . . . 8 Projectiles . | . . . . . Explosions 8 | . . . . 8 Melee . | . . . . . Knockbacks . | . . . . . Impact . | . . . . . Kinetic . | . . . . . Secondary . | . . . . . Self-Inflicted Damage 50 | . . 49 . 1 Shots 2 | . . 2 . . Rammed 2 | . . . . 2 Targets Rammed 2 | . . . . 2 Kicked . | . . . . . Crushed . | . . . . . Highest Temperature 120 | . . 42 120 81 Average Temperature 29 | . . 21 33 27 Received Heat Transfer 477 | . 6 21 108 342 Siege Activations . | . . . . . Martial Activations . | . . . . . Shielding Activations . | . . . . . Robots Disrupted . | . . . . . Combat Hostiles . | . . . . . Robots Corrupted . | . . . . . Combat Hostiles . | . . . . . Parts Fried . | . . . . . Impact Corruptions . | . . . . . Robots Melted . | . . . . . Combat Hostiles . | . . . . . Parts Melted 1 | . . . 1 . Heat Transferred 460 | . . 100 220 140 Parts Sabotaged . | . . . . . Parts Stolen . | . . . . . Parts Stripped . | . . . . . Power Chain Reactions 3 | . . 3 . . Alert | -11 -10 -10 -9 -9 ------- Run | Yrd Mat Min Mat Sto Maximum Alert Level . | . . . . . Low Security (%) 100 | 100 100 100 100 100 Level 1 . | . . . . . Level 2 . | . . . . . Level 3 . | . . . . . Level 4 . | . . . . . Level 5 . | . . . . . High Security . | . . . . . Max Security . | . . . . . Peak Influence 170 | 5 . 120 170 167 Initial 61 | . . . . 61 Average 62 | 1 . 42 91 116 Influence Increases 875 | 15 . 244 300 316 Destroy 0b10 Robot/C 500 | . . 140 180 180 Destroy 0b10 Robot/NC 45 | 15 . 20 5 5 Destroy Leader 112 | . . 30 40 42 Successful Hack 9 | . . 4 . 5 Disable Machine 15 | . . . . 15 Destroy Structure 89 | . . 50 . 39 Partial Spotted 15 | . . . . 15 Lose Combat Pursuer 90 | . . . 75 15 Influence Decreases 782 | 15 . 244 155 368 Entered New Map 84 | . . . . 84 Time Decay 608 | 15 . 244 135 214 Lost Part 90 | . . . 20 70 Squads Dispatched 6 | . 1 . 3 2 Investigation 4 | . 1 . 2 1 Extermination . | . . . . . Reinforcement 2 | . . . 1 1 Assault . | . . . . . Garrison . | . . . . . Intercept . | . . . . . Searches Triggered . | . . . . . Construction Impeded . | . . . . . Haulers Reinforced . | . . . . . Active Scanning Responses . | . . . . . Cargo Convoy Interrupts . | . . . . . Stealth | -11 -10 -10 -9 -9 --------- Run | Yrd Mat Min Mat Sto Distress Signals 3 | . . . . 3 Communications Jammed . | . . . . . Distress Signals . | . . . . . Times Spotted 46 | . 3 7 18 18 Peak Tracking Total 9 | . 2 3 4 9 Tactical Retreats 5 | . . . 4 1 Traps | -11 -10 -10 -9 -9 ------- Run | Yrd Mat Min Mat Sto Traps Triggered 2 | . 1 . . 1 Indirectly . | . . . . . Trap Hack Attempts . | . . . . . Triggered . | . . . . . Disarmed . | . . . . . Reprogrammed . | . . . . . Reused . | . . . . . Traps Extracted . | . . . . . Installed . | . . . . . Triggered . | . . . . . Machines | -11 -10 -10 -9 -9 ---------- Run | Yrd Mat Min Mat Sto Machines Disabled 1 | . . . . 1 Max in Single Turn 1 | . . . . 1 Machines Repaired . | . . . . . Machines Dismantled . | . . . . . Machines Sabotaged . | . . . . . Overloaded Fab Kills . | . . . . . Hacking | -11 -10 -10 -9 -9 --------- Run | Yrd Mat Min Mat Sto Machines Accessed 12 | . 2 3 2 5 Terminals 9 | . 1 1 2 5 Fabricators . | . . . . . Repair Stations . | . . . . . Recycling Units 1 | . 1 . . . Scanalyzers . | . . . . . Garrison Access . | . . . . . Total Hacks 25 | . 5 4 5 11 Successful 10 | . 2 4 . 4 Failed 15 | . 3 . 5 7 Catastrophic . | . . . . . Database Lockouts . | . . . . . Manual 12 | . 2 . 5 5 Terminals 20 | . 2 2 5 11 Fabricators . | . . . . . Repair Stations . | . . . . . Recycling Units 3 | . 3 . . . Scanalyzers . | . . . . . Garrison Access . | . . . . . Terminal Hacks 6 | . . 4 . 2 Open Door 3 | . . 2 . 1 Alert Level 1 | . . . . 1 Dispatch Records 1 | . . 1 . . Patrol Status 1 | . . 1 . . Fabricator Hacks . | . . . . . Repair Station Hacks . | . . . . . Recycling Unit Hacks 2 | . 2 . . . Retrieve Matter 2 | . 2 . . . Scanalyzer . | . . . . . Garrison Access Hacks . | . . . . . Unauthorized Hacks 2 | . . . . 2 Terminals 2 | . . . . 2 Botnet 2 | . . . . 2 Fabricators . | . . . . . Repair Stations . | . . . . . Recycling Units . | . . . . . Scanalyzers . | . . . . . Garrison Access . | . . . . . Data Cores Recovered . | . . . . . Used . | . . . . . Hacking Detections 6 | . 2 . 2 2 Full Trace Events 3 | . . . 2 1 Feedback Events . | . . . . . Feedback Blocked . | . . . . . Robot Schematics Acquired . | . . . . . Robots Built . | . . . . . Authchips . | . . . . . Time . | . . . . . Total Robot Build Rating . | . . . . . Part Schematics Acquired . | . . . . . Parts Built . | . . . . . Authchips . | . . . . . Time . | . . . . . Total Part Build Rating . | . . . . . Parts Repaired . | . . . . . Time . | . . . . . Parts Recycled . | . . . . . Recycled Matter . | . . . . . Retrieved Matter . | . . . . . Retrieved Components . | . . . . . Parts Scanalyzed . | . . . . . Part Schematics Acquired . | . . . . . Parts Damaged . | . . . . . Bothacking | -11 -10 -10 -9 -9 ------------ Run | Yrd Mat Min Mat Sto Used RIF Installer . | . . . . . Robots Hacked . | . . . . . Non-combat . | . . . . . Combat . | . . . . . Robot Hacks Applied . | . . . . . Relay Couplers Released . | . . . . . Fabnet Peak Effective % . | . . . . . Robots Rewired . | . . . . . Allies Hacked . | . . . . . Hacks Repelled . | . . . . . Allies | -11 -10 -10 -9 -9 -------- Run | Yrd Mat Min Mat Sto Total Allies . | . . . . . Largest Group . | . . . . . Highest-Rated Group . | . . . . . Highest-Rated Ally . | . . . . . Total Orders 1 | . . 1 . . EXPLORE 1 | . . 1 . . Ally Attacks . | . . . . . Total Damage . | . . . . . Kills . | . . . . . Allies Corrupted . | . . . . . Allies Melted . | . . . . . Intel | -11 -10 -10 -9 -9 ------- Run | Yrd Mat Min Mat Sto Active Infowar (turns) 1090 | 16 162 186 319 407 Terrain 12 | 12 . . . . Seismic 1078 | 4 162 186 319 407 Robot Analysis Total . | . . . . . Derelict Logs Recovered 1 | . . 1 . . Drone Launches 20 | . . 20 . . Drone Recoveries 20 | . . 20 . . Exploration | -11 -10 -10 -9 -9 ------------- Run | Yrd Mat Min Mat Sto Turns Passed 1907 | 83 162 892 319 451 Spaces Moved 1676 | 57 171 817 254 377 Core 77 | 8 . . . 69 Treads . | . . . . . Legs 188 | . . . . 188 Wheels 1411 | 49 171 817 254 120 Hover . | . . . . . Flight . | . . . . . Fastest Speed 50 | 50 90 80 83 50 Average Speed 88 | 86 90 86 84 97 Slowest Speed 190 | 100 90 105 86 190 Overloaded Moves . | . . . . . Propulsion Burnouts . | . . . . . Robots Hopped . | . . . . . Potential Cave-ins . | . . . . . Cave-ins Triggered . | . . . . . Exploration Rate (%) 44 | 4 33 99 24 61 Regions Visited 4 Branch Regions 2 Pre-discovered Areas 1 | . . 1 . . Known Exits Taken 1 | . . 1 . . Unknown Exits Taken 3 | 1 1 . 1 . Scrap Searched 1 | . . 1 . . Spaces Dug 3 | . . . . 3 Terrain Destroyed 98 | . . 61 . 37 Melee 3 | . . . . 3 Projectile . | . . . . . AOE 95 | . . 61 . 34 Terrain Rammed . | . . . . . Walls Destroyed . | . . . . . Machines Disabled . | . . . . . Actions | -11 -10 -10 -9 -9 --------- Run | Yrd Mat Min Mat Sto Total 1973 | 76 180 969 310 438 Wait 176 | . . 120 28 28 Move 1672 | 56 170 816 253 377 Hop . | . . . . . Pick Up 19 | 5 7 2 1 4 Fast Attach 13 | 7 . 2 1 3 Attach 8 | 1 . . 3 4 Detach . | . . . . . Swap 13 | . . 7 . 6 Drop 10 | 1 3 4 . 2 Fire 57 | 6 . 18 24 9 Melee 3 | . . . . 3 Ram 2 | . . . . 2 Kick . | . . . . . Crush . | . . . . . Escape Stasis . | . . . . . Rewire . | . . . . . Trap . | . . . . . Miscellaneous . | . . . . . Route ------- -11/Scrapyard -10/Materials -10/Mines (discovered 3 exits: *Mat x2 / Sub) -9/Materials -9/Storage History --------- Turn | Location | Event 16 | -11/Scrapyard | Discovered new exit (range 15) 84 | -11/Scrapyard | Entered Materials 220 | -10/Materials | Discovered new exit (range 8) 246 | -10/Materials | Entered Mines 266 | -10/Mines | Discovered new exit (range 9) 300 | -10/Mines | Build established: Mutant 324 | -10/Mines | Met a Derelict who couldn't figure out how to use a Trap Extractor 373 | -10/Mines | Found the Drone Emporium 382 | -10/Mines | Found Prototype Device 382 | -10/Mines | Identified Sensor Drone Bay 415 | -10/Mines | Discovered new exit (range 9) 416 | -10/Mines | Identified exit to Materials 705 | -10/Mines | A weapon hastily lodged in a ceiling crevice suddenly fell to the ground 947 | -10/Mines | Identified exit to Subcaves 973 | -10/Mines | Learned location of Storage (-9) 1138 | -10/Mines | Entered Materials 1138 | -9/Materials | Evolved 2 slots: Propulsion x1, Utility x1 1328 | -9/Materials | Discovered new exit (range 3) 1457 | -9/Materials | Entered Storage 1839 | -9/Storage | Core integrity fell below 50% 1864 | -9/Storage | Released all parts (6) 1866 | -9/Storage | Lost 5 parts (1p2n2w) 1882 | -9/Storage | Core integrity fell below 20% 1908 | -9/Storage | Destroyed by Y-45 Defender with Beam Rifle Last Messages --------------- 01835_ W-16 Scout sends out distress signal. 01835_ Imp. Aluminum Leg destroyed. 01835_ Critical hit (Burn: +37). 01836_ U-05 Engineer lays Concrete. 01837_ U-05 Engineer builds a Wall. 01837_ R-06 Scavenger collects Flight Unit. 01838_ System corrupted: Matter fused (-7). 01838_ Critical hit (Burn: +37). 01849_ U-05 Engineer lays Concrete. 01851_ U-05 Engineer builds a Door. 01864_ Released Imp. Aluminum Leg. 01864_ Released Hacking Suite. 01864_ Released Seismic Detector. 01864_ Released Sml. Storage Unit. 01866_ Acquired Sensor Drone Bay. 01879_ Slammed into Y-45 Defender. 01879_ Destabilizing: Core damaged (-8). 01880_ Slammed into Y-45 Defender. 01893_ Acquired 10 matter. 01905_ Acquired 3 matter. Map ----- +----------------------------------------------------+ | #??????????????????????# # # R"#? | | #??????????????????????# / # """ """#? | | #??????????????????????# # # """ #? | | ??????????????????????#!!! # # """ ## | | ??????????????????????#!!! ?## ## + | | " ??????????????????????#!!! ???# ## ## | | ? ??????????????????????"" ????# ####" "#####? | | ????????????????????????"Y ?????# #??#"G"#????? | | ????????????????????????"" ??????# #??# " #????? | | ?????????????????????????#???????# #??#####????? | | ?????????????????????????????????# #???????????? | | ?????????????????????????????????# #???????????? | | ?????????????????????????????????# #???????????? | | ?????????????###########?????????# #???????????? | | ?????????????# #?????????# #???????????? | | ?????????????# """ ##?????????# #???????????? | | ?????????????# "R #??????????# #???????????? | | ?????????????# """ #??????????# #???????????? | | ?????######### ! #??????????# #???????????? | | ?????# !!!# /// #??????????# #???????????? | | ###### """=![# /// #??????????# #???????????? | | + / "T"!==# /// #??????????# #???????????? | | # # = # ##?????????# #???????????? | | # #############+############### #########???? | | # Y k % k k | | + YY @ | | # Y u u | | ! ###+#+#########;###################+##########? | | # #?# #?????????????????????????? | | # ## #?????????????????????????? | | ## # ### #?????????????????????????? | | ?### #?# ""????????????????????????? | | ???# #?# " "" T"????????????????????????? | | ???# """" #?# """" ""#???????????????????????? | | ???# """" #?# """" ##????????????????????????? | | ???# """" #? "?"" #?????????????????????????? | | ???# """" #?# ??? #?????????????????????????? | | ???###????###??????#####?????????????????????????? | | ?????????????????????????????????????????????????? | | ?????????????????????????????????????????????????? | | ?????????????????????????????????????????????????? | | ?????????????????????????????????????????????????? | | ?????????????????????????????????????????????????? | | ?????????????????????????????????????????????????? | | ?????????????????????????????????????????????????? | | ?????????????????????????????????????????????????? | | ?????????????????????????????????????????????????? | | ?????????????????????????????????????????????????? | | | | | +----------------------------------------------------+ Best States ------------- Heat Dissipation 28 Energy Generation 10 Energy Capacity 250 Matter Stores 300 Matter Capacity 300 Sight Range 16 Terrain Scan Range 16 Terrain Scan Density 10 Evasion (%) 55 Offensive Hacking 10 Item Schematics ----------------- None Robot Schematics ------------------ None Fabricated ------------ Nothing Repaired ---------- Nothing Alien Tech Used ----------------- None Achievements -------------- None Challenges ------------ None Game ------ Seed WardroneTeslaBlasthammer Manual? 0 Play Time 00:20:36 Cumulative 54.9 hours Start 2025.07.25 @ 18:10:55 End 2025.07.25 @ 18:29:06 Sessions 1 Manual Loads 0 Difficulty Rogue Special Mode None Game No. 75 Rogue 75 Adventurer 0 Explorer 0 Win Type - Total 0 Types 0/0/0/0/0/0/0/0/0/0 Lore% 41 Gallery% 32 Achievement% 33 Wizard Run 0 Options --------- Layout 1 ASCII 0 Keyboard 0 Movement Arrows Keybinds 0 Fullscreen 1 Font 24/Smallcaps Map View 50x35 Zoom Use 0% Tactical HUD 1 Map Filters NONE Filters NONE Steam 1 RUN: 31f706a6-b79c-49a1-949f-4a98f947f120